[Event "Titled Tuesday Blitz May 10 Late 2022"]
[White "Riehle, Marco"]
[Black "Hakobyan, Aram"]
[WhiteFideId "12904392"]
[BlackFideId "13306677"]
[WhiteElo "2462"]
[BlackElo "2557"]
[Result "0-1"]
[Round "08"]
[TimeControl "180+1"]
[Date "2022.05.10"]
[WhiteClock "0:00:29"]
[BlackClock "0:00:08"]

1. e4 {[%clk 0:03:00]}  c5 {[%clk 0:02:54]} 2. a3 {[%clk 0:03:00]}  g6 {[%clk 0:02:50]} 3. h4 {[%clk 0:03:00]}  h5 {[%clk 0:02:37]} 4. Nc3 {[%clk 0:02:58]}  Bg7 {[%clk 0:02:37]} 5. Bc4 {[%clk 0:02:58]}  Nc6 {[%clk 0:02:37]} 6. d3 {[%clk 0:02:59]}  e6 {[%clk 0:02:34]} 7. Bg5 {[%clk 0:02:59]}  Nge7 {[%clk 0:02:32]} 8. Qd2 {[%clk 0:02:57]}  f6 {[%clk 0:02:20]} 9. Bf4 {[%clk 0:02:55]}  d5 {[%clk 0:02:19]} 10. Ba2 {[%clk 0:02:51]}  d4 {[%clk 0:02:05]} 11. Nce2 {[%clk 0:02:50]}  e5 {[%clk 0:02:05]} 12. Bg3 {[%clk 0:02:49]}  Bh6 {[%clk 0:02:04]} 13. f4 {[%clk 0:02:49]}  Bg4 {[%clk 0:02:04]} 14. Nf3 {[%clk 0:02:47]}  Qc7 {[%clk 0:01:57]} 15. O-O-O {[%clk 0:02:44]}  O-O-O {[%clk 0:01:48]} 16. Kb1 {[%clk 0:02:43]}  Kb8 {[%clk 0:01:46]} 17. Rhf1 {[%clk 0:02:43]}  Ka8 {[%clk 0:01:40]} 18. Rf2 {[%clk 0:02:22]}  Rhf8 {[%clk 0:01:39]} 19. Rdf1 {[%clk 0:02:22]}  f5 {[%clk 0:01:35]} 20. Ng5 {[%clk 0:02:17]}  Bxg5 {[%clk 0:01:34]} 21. hxg5 {[%clk 0:02:11]}  fxe4 {[%clk 0:01:29]} 22. dxe4 {[%clk 0:02:09]}  Qd7 {[%clk 0:01:08]} 23. fxe5 {[%clk 0:02:04]}  Rxf2 {[%clk 0:01:07]} 24. Rxf2 {[%clk 0:02:02]}  h4 {[%clk 0:01:04]} 25. Bh2 {[%clk 0:01:57]}  Be6 {[%clk 0:00:51]} 26. Rf6 {[%clk 0:01:40]}  Bxa2+ {[%clk 0:00:49]} 27. Kxa2 {[%clk 0:01:41]}  Qg4 {[%clk 0:00:47]} 28. Nc1 {[%clk 0:01:26]}  Qxe4 {[%clk 0:00:45]} 29. Qe2 {[%clk 0:01:16]}  Qd5+ {[%clk 0:00:41]} 30. b3 {[%clk 0:01:14]}  a6 {[%clk 0:00:36]} 31. Rd6 {[%clk 0:01:12]}  Rxd6 {[%clk 0:00:30]} 32. exd6 {[%clk 0:01:13]}  Nf5 {[%clk 0:00:31]} 33. Qe8+ {[%clk 0:01:11]}  Ka7 {[%clk 0:00:26]} 34. d7 {[%clk 0:01:10]}  Qxg2 {[%clk 0:00:26]} 35. Bb8+ {[%clk 0:01:09]}  Nxb8 {[%clk 0:00:23]} 36. d8=Q {[%clk 0:01:05]}  Qxc2+ {[%clk 0:00:24]} 37. Ka1 {[%clk 0:01:05]}  Qxc1+ {[%clk 0:00:24]} 38. Ka2 {[%clk 0:01:06]}  Qc2+ {[%clk 0:00:23]} 39. Ka1 {[%clk 0:01:06]}  Qc1+ {[%clk 0:00:20]} 40. Ka2 {[%clk 0:01:06]}  Qf4 {[%clk 0:00:15]} 41. Qd5 {[%clk 0:01:00]}  Qd2+ {[%clk 0:00:14]} 42. Ka1 {[%clk 0:01:00]}  Qc3+ {[%clk 0:00:14]} 43. Ka2 {[%clk 0:01:00]}  Qc2+ {[%clk 0:00:14]} 44. Ka1 {[%clk 0:01:00]}  Qc3+ {[%clk 0:00:14]} 45. Kb1 {[%clk 0:00:59]}  Ne3 {[%clk 0:00:14]} 46. Qdg8 {[%clk 0:00:41]}  Qd3+ {[%clk 0:00:14]} 47. Ka2 {[%clk 0:00:40]}  Qd2+ {[%clk 0:00:14]} 48. Kb1 {[%clk 0:00:40]}  Qd1+ {[%clk 0:00:13]} 49. Ka2 {[%clk 0:00:39]}  Qe2+ {[%clk 0:00:13]} 50. Kb1 {[%clk 0:00:39]}  Qf1+ {[%clk 0:00:14]} 51. Ka2 {[%clk 0:00:40]}  Qf2+ {[%clk 0:00:14]} 52. Kb1 {[%clk 0:00:40]}  Qg1+ {[%clk 0:00:15]} 53. Ka2 {[%clk 0:00:40]}  Qh2+ {[%clk 0:00:14]} 54. Kb1 {[%clk 0:00:41]}  Nd1 {[%clk 0:00:08]} 55. Qexg6 {[%clk 0:00:29]}  Qb2# {[%clk 0:00:08]} 0-1


[Site "https://www.chess.com"]

[Event "Titled Tuesday Blitz May 10 Late 2022"]
[White "Romero Ruscalleda, Josep"]
[Black "Jeet, Jain"]
[WhiteFideId "2231859"]
[BlackFideId "5073022"]
[WhiteElo "2319"]
[BlackElo "2028"]
[Result "0-1"]
[Round "08"]
[TimeControl "180+1"]
[Date "2022.05.11"]
[WhiteClock "0:00:10"]
[BlackClock "0:01:35"]

1. e4 {[%clk 0:03:00]}  g6 {[%clk 0:02:46]} 2. d4 {[%clk 0:03:00]}  Bg7 {[%clk 0:02:46]} 3. Nc3 {[%clk 0:03:00]}  a6 {[%clk 0:02:47]} 4. a4 {[%clk 0:02:59]}  d6 {[%clk 0:02:46]} 5. Be2 {[%clk 0:02:58]}  Nd7 {[%clk 0:02:34]} 6. Be3 {[%clk 0:02:55]}  e5 {[%clk 0:02:31]} 7. Nf3 {[%clk 0:02:54]}  Ngf6 {[%clk 0:02:30]} 8. O-O {[%clk 0:02:51]}  O-O {[%clk 0:02:28]} 9. h3 {[%clk 0:02:49]}  Re8 {[%clk 0:02:23]} 10. dxe5 {[%clk 0:02:41]}  dxe5 {[%clk 0:02:19]} 11. Bc4 {[%clk 0:02:37]}  h6 {[%clk 0:02:12]} 12. Bb3 {[%clk 0:02:22]}  Qe7 {[%clk 0:02:10]} 13. Qd2 {[%clk 0:02:03]}  g5 {[%clk 0:02:09]} 14. Rad1 {[%clk 0:01:55]}  Nc5 {[%clk 0:02:08]} 15. Bxc5 {[%clk 0:01:17]}  Qxc5 {[%clk 0:02:08]} 16. Nh2 {[%clk 0:01:00]}  Be6 {[%clk 0:02:02]} 17. Bxe6 {[%clk 0:00:56]}  Rxe6 {[%clk 0:02:03]} 18. Ng4 {[%clk 0:00:52]}  Nh5 {[%clk 0:01:59]} 19. Qd5 {[%clk 0:00:42]}  Qb6 {[%clk 0:01:53]} 20. a5 {[%clk 0:00:18]}  Qxb2 {[%clk 0:01:51]} 21. Na4 {[%clk 0:00:16]}  Qxc2 {[%clk 0:01:48]} 22. Qxb7 {[%clk 0:00:15]}  Rae8 {[%clk 0:01:43]} 23. Rc1 {[%clk 0:00:13]}  Qxa4 {[%clk 0:01:42]} 24. Rxc7 {[%clk 0:00:12]}  Rf8 {[%clk 0:01:36]} 25. Rd1 {[%clk 0:00:10]}  Qxd1+ {[%clk 0:01:35]} 0-1


[Site "https://www.chess.com"]

[Event "Titled Tuesday Blitz May 10 Late 2022"]
[White "Rosenberg, Evan S"]
[Black "Kanyamarala, Tarun"]
[WhiteFideId "2019299"]
[BlackFideId "45004714"]
[WhiteElo "2377"]
[BlackElo "2219"]
[Result "0-1"]
[Round "08"]
[TimeControl "180+1"]
[Date "2022.05.11"]
[WhiteClock "0:00:57"]
[BlackClock "0:01:17"]

1. d4 {[%clk 0:02:59]}  d6 {[%clk 0:02:58]} 2. e4 {[%clk 0:02:58]}  e5 {[%clk 0:02:58]} 3. dxe5 {[%clk 0:02:57]}  dxe5 {[%clk 0:02:58]} 4. Qxd8+ {[%clk 0:02:57]}  Kxd8 {[%clk 0:02:59]} 5. f4 {[%clk 0:02:51]}  exf4 {[%clk 0:02:55]} 6. Nc3 {[%clk 0:02:51]}  Bd6 {[%clk 0:02:50]} 7. Nf3 {[%clk 0:02:44]}  f6 {[%clk 0:02:39]} 8. Bc4 {[%clk 0:02:32]}  Nc6 {[%clk 0:02:34]} 9. O-O {[%clk 0:02:32]}  Ne5 {[%clk 0:02:34]} 10. Bxg8 {[%clk 0:02:28]}  Rxg8 {[%clk 0:02:31]} 11. Nd5 {[%clk 0:02:29]}  Bg4 {[%clk 0:02:18]} 12. Bxf4 {[%clk 0:02:14]}  Bxf3 {[%clk 0:02:13]} 13. gxf3 {[%clk 0:02:13]}  c6 {[%clk 0:02:13]} 14. Bxe5 {[%clk 0:02:13]}  Bxe5 {[%clk 0:02:12]} 15. Ne3 {[%clk 0:02:06]}  Kc7 {[%clk 0:02:07]} 16. c3 {[%clk 0:02:05]}  Rad8 {[%clk 0:02:01]} 17. f4 {[%clk 0:02:05]}  Bd6 {[%clk 0:02:00]} 18. Nf5 {[%clk 0:02:04]}  Bc5+ {[%clk 0:01:58]} 19. Kg2 {[%clk 0:02:04]}  Rd2+ {[%clk 0:01:55]} 20. Kg3 {[%clk 0:02:04]}  Rxb2 {[%clk 0:01:52]} 21. a4 {[%clk 0:01:55]}  g6 {[%clk 0:01:38]} 22. Nd4 {[%clk 0:01:50]}  Re8 {[%clk 0:01:37]} 23. Rfe1 {[%clk 0:01:46]}  Bxd4 {[%clk 0:01:31]} 24. cxd4 {[%clk 0:01:46]}  Rd2 {[%clk 0:01:31]} 25. e5 {[%clk 0:01:38]}  Rd3+ {[%clk 0:01:25]} 26. Kg4 {[%clk 0:01:06]}  f5+ {[%clk 0:01:22]} 27. Kg5 {[%clk 0:01:04]}  Rxd4 {[%clk 0:01:22]} 28. a5 {[%clk 0:00:57]}  Re6 {[%clk 0:01:17]} 0-1


[Site "https://www.chess.com"]

[Event "Titled Tuesday Blitz May 10 Late 2022"]
[White "Rustemov, Alexander"]
[Black "Srinath, Rao S.V."]
[WhiteFideId "4119002"]
[BlackFideId "5028876"]
[WhiteElo "2746"]
[BlackElo "2181"]
[Result "1-0"]
[Round "08"]
[TimeControl "180+1"]
[Date "2022.05.10"]
[WhiteClock "0:01:03"]
[BlackClock "0:00:13"]

1. d4 {[%clk 0:03:00]}  Nf6 {[%clk 0:02:58]} 2. c4 {[%clk 0:03:01]}  g6 {[%clk 0:02:56]} 3. Nf3 {[%clk 0:03:01]}  Bg7 {[%clk 0:02:57]} 4. g3 {[%clk 0:03:01]}  O-O {[%clk 0:02:57]} 5. Bg2 {[%clk 0:03:02]}  d6 {[%clk 0:02:58]} 6. Nc3 {[%clk 0:03:01]}  Nbd7 {[%clk 0:02:57]} 7. O-O {[%clk 0:03:01]}  e5 {[%clk 0:02:57]} 8. e4 {[%clk 0:03:02]}  exd4 {[%clk 0:02:55]} 9. Nxd4 {[%clk 0:03:01]}  Ng4 {[%clk 0:02:51]} 10. h3 {[%clk 0:02:59]}  Nge5 {[%clk 0:02:51]} 11. b3 {[%clk 0:03:00]}  Nc5 {[%clk 0:02:46]} 12. Be3 {[%clk 0:02:54]}  a5 {[%clk 0:02:39]} 13. Rb1 {[%clk 0:02:48]}  c6 {[%clk 0:02:28]} 14. f4 {[%clk 0:02:42]}  Ned7 {[%clk 0:02:21]} 15. Nde2 {[%clk 0:02:34]}  Qe7 {[%clk 0:02:18]} 16. Bd4 {[%clk 0:02:30]}  h5 {[%clk 0:02:00]} 17. Bxg7 {[%clk 0:02:29]}  Kxg7 {[%clk 0:02:01]} 18. Qd4+ {[%clk 0:02:29]}  Qf6 {[%clk 0:02:00]} 19. Rfd1 {[%clk 0:02:28]}  Re8 {[%clk 0:01:49]} 20. Qxd6 {[%clk 0:02:25]}  Qxd6 {[%clk 0:01:44]} 21. Rxd6 {[%clk 0:02:26]}  Nf6 {[%clk 0:01:45]} 22. e5 {[%clk 0:02:22]}  Ng8 {[%clk 0:01:45]} 23. Rbd1 {[%clk 0:02:18]}  Bf5 {[%clk 0:01:44]} 24. Nd4 {[%clk 0:02:09]}  Ne7 {[%clk 0:01:42]} 25. a3 {[%clk 0:02:06]}  Bc8 {[%clk 0:01:27]} 26. b4 {[%clk 0:02:03]}  axb4 {[%clk 0:01:27]} 27. axb4 {[%clk 0:02:04]}  Ne6 {[%clk 0:01:27]} 28. Ne4 {[%clk 0:02:00]}  Nxd4 {[%clk 0:01:23]} 29. R6xd4 {[%clk 0:01:59]}  Nf5 {[%clk 0:01:23]} 30. R4d3 {[%clk 0:01:59]}  Be6 {[%clk 0:01:23]} 31. c5 {[%clk 0:01:57]}  Ra4 {[%clk 0:01:22]} 32. g4 {[%clk 0:01:50]}  hxg4 {[%clk 0:01:22]} 33. hxg4 {[%clk 0:01:51]}  Nh4 {[%clk 0:01:20]} 34. Nf6 {[%clk 0:01:49]}  Rf8 {[%clk 0:01:15]} 35. Be4 {[%clk 0:01:43]}  Rxb4 {[%clk 0:01:14]} 36. Kf2 {[%clk 0:01:35]}  Bxg4 {[%clk 0:00:55]} 37. Rh1 {[%clk 0:01:26]}  Rh8 {[%clk 0:00:47]} 38. Kg3 {[%clk 0:01:18]}  Nf5+ {[%clk 0:00:21]} 39. Kxg4 {[%clk 0:01:17]}  Rxh1 {[%clk 0:00:19]} 40. Bxh1 {[%clk 0:01:16]}  Nh6+ {[%clk 0:00:15]} 41. Kg5 {[%clk 0:01:12]}  Rb1 {[%clk 0:00:14]} 42. Ne8+ {[%clk 0:01:10]}  Kh7 {[%clk 0:00:14]} 43. Rh3 {[%clk 0:01:03]}  Rg1+ {[%clk 0:00:13]} 44. Kf6 {[%clk 0:01:03]} 1-0


[Site "https://www.chess.com"]

[Event "Titled Tuesday Blitz May 10 Late 2022"]
[White "Sabar, Ethmane Daouda"]
[Black "Vusatiuk, Vladimir"]
[WhiteFideId "19600097"]
[BlackFideId "14118610"]
[WhiteElo "1950"]
[BlackElo "2157"]
[Result "0-1"]
[Round "08"]
[TimeControl "180+1"]
[Date "2022.05.11"]
[WhiteClock "0:00:09"]
[BlackClock "0:00:53"]

1. Nf3 {[%clk 0:02:58]}  Nf6 {[%clk 0:02:58]} 2. g3 {[%clk 0:02:59]}  g6 {[%clk 0:02:56]} 3. Bg2 {[%clk 0:03:00]}  Bg7 {[%clk 0:02:57]} 4. O-O {[%clk 0:03:01]}  O-O {[%clk 0:02:58]} 5. d3 {[%clk 0:03:01]}  d5 {[%clk 0:02:58]} 6. Nbd2 {[%clk 0:03:00]}  c5 {[%clk 0:02:57]} 7. e4 {[%clk 0:02:58]}  e6 {[%clk 0:02:58]} 8. c3 {[%clk 0:02:55]}  Nc6 {[%clk 0:02:58]} 9. Re1 {[%clk 0:02:53]}  a5 {[%clk 0:02:57]} 10. e5 {[%clk 0:02:47]}  Nd7 {[%clk 0:02:56]} 11. d4 {[%clk 0:02:48]}  cxd4 {[%clk 0:02:54]} 12. cxd4 {[%clk 0:02:48]}  f6 {[%clk 0:02:40]} 13. exf6 {[%clk 0:02:32]}  Qxf6 {[%clk 0:02:40]} 14. Nb3 {[%clk 0:02:03]}  a4 {[%clk 0:02:39]} 15. Bg5 {[%clk 0:02:02]}  Qf5 {[%clk 0:02:30]} 16. Nc5 {[%clk 0:02:01]}  Nxc5 {[%clk 0:02:29]} 17. dxc5 {[%clk 0:02:02]}  a3 {[%clk 0:02:09]} 18. bxa3 {[%clk 0:01:56]}  Bxa1 {[%clk 0:02:08]} 19. Qxa1 {[%clk 0:01:57]}  e5 {[%clk 0:02:02]} 20. Bh6 {[%clk 0:01:56]}  Re8 {[%clk 0:01:59]} 21. Nh4 {[%clk 0:01:51]}  Qf7 {[%clk 0:01:54]} 22. Qd1 {[%clk 0:01:40]}  Be6 {[%clk 0:01:47]} 23. Nf3 {[%clk 0:01:31]}  Bg4 {[%clk 0:01:28]} 24. Qb3 {[%clk 0:01:12]}  Bxf3 {[%clk 0:01:17]} 25. Bxf3 {[%clk 0:01:13]}  Nd4 {[%clk 0:01:16]} 26. Bxd5 {[%clk 0:01:08]}  Nxb3 {[%clk 0:01:16]} 27. Bxf7+ {[%clk 0:01:06]}  Kxf7 {[%clk 0:01:17]} 28. axb3 {[%clk 0:01:05]}  Rxa3 {[%clk 0:01:17]} 29. b4 {[%clk 0:01:05]}  e4 {[%clk 0:01:06]} 30. Rb1 {[%clk 0:00:56]}  Rea8 {[%clk 0:01:04]} 31. Kg2 {[%clk 0:00:48]}  Ke6 {[%clk 0:01:04]} 32. Rd1 {[%clk 0:00:45]}  Rd3 {[%clk 0:01:01]} 33. Re1 {[%clk 0:00:38]}  Kd5 {[%clk 0:01:01]} 34. Be3 {[%clk 0:00:12]}  Ra2 {[%clk 0:00:58]} 35. Kh3 {[%clk 0:00:11]}  Rb2 {[%clk 0:00:57]} 36. Kg4 {[%clk 0:00:07]}  Rxb4 {[%clk 0:00:57]} 37. f3 {[%clk 0:00:07]}  exf3+ {[%clk 0:00:51]} 38. Kxf3 {[%clk 0:00:08]}  Rbb3 {[%clk 0:00:52]} 39. Kf4 {[%clk 0:00:07]}  Rxe3 {[%clk 0:00:52]} 40. Rxe3 {[%clk 0:00:08]}  Rxe3 {[%clk 0:00:52]} 41. Kxe3 {[%clk 0:00:09]}  Kxc5 {[%clk 0:00:53]} 0-1


[Site "https://www.chess.com"]

[Event "Titled Tuesday Blitz May 10 Late 2022"]
[White "Sanchez Alvares, Kelvin Antonio"]
[Black "Ardila, Oscar Humberto"]
[WhiteFideId "3906680"]
[BlackFideId "4404742"]
[WhiteElo "2193"]
[BlackElo "1928"]
[Result "1/2-1/2"]
[Round "08"]
[TimeControl "180+1"]
[Date "2022.05.11"]
[WhiteClock "0:01:06"]
[BlackClock "0:00:15"]

1. d4 {[%clk 0:03:00]}  Nf6 {[%clk 0:03:00]} 2. c4 {[%clk 0:03:00]}  e6 {[%clk 0:03:00]} 3. Nf3 {[%clk 0:03:00]}  Bb4+ {[%clk 0:03:00]} 4. Bd2 {[%clk 0:03:00]}  Qe7 {[%clk 0:02:57]} 5. a3 {[%clk 0:02:58]}  Bxd2+ {[%clk 0:02:57]} 6. Qxd2 {[%clk 0:02:59]}  O-O {[%clk 0:02:57]} 7. Nc3 {[%clk 0:02:59]}  d6 {[%clk 0:02:57]} 8. b4 {[%clk 0:02:57]}  a5 {[%clk 0:02:57]} 9. bxa5 {[%clk 0:02:53]}  Nc6 {[%clk 0:02:51]} 10. a6 {[%clk 0:02:52]}  Rxa6 {[%clk 0:02:50]} 11. e3 {[%clk 0:02:51]}  Ra8 {[%clk 0:02:47]} 12. Be2 {[%clk 0:02:50]}  e5 {[%clk 0:02:44]} 13. Nd5 {[%clk 0:02:47]}  Nxd5 {[%clk 0:02:44]} 14. cxd5 {[%clk 0:02:47]}  Na5 {[%clk 0:02:44]} 15. Qc2 {[%clk 0:02:44]}  e4 {[%clk 0:02:35]} 16. Nd2 {[%clk 0:02:43]}  Bf5 {[%clk 0:02:29]} 17. O-O {[%clk 0:02:33]}  Bg6 {[%clk 0:02:28]} 18. Rfc1 {[%clk 0:02:30]}  Rfc8 {[%clk 0:02:27]} 19. Nb3 {[%clk 0:02:25]}  b6 {[%clk 0:02:19]} 20. Bb5 {[%clk 0:02:22]}  Nxb3 {[%clk 0:02:16]} 21. Qxb3 {[%clk 0:02:22]}  Ra5 {[%clk 0:02:16]} 22. a4 {[%clk 0:02:22]}  h5 {[%clk 0:02:11]} 23. Rc3 {[%clk 0:02:16]}  f5 {[%clk 0:02:05]} 24. Rac1 {[%clk 0:02:15]}  Kh7 {[%clk 0:01:59]} 25. Rc6 {[%clk 0:02:13]}  Ra7 {[%clk 0:01:52]} 26. Rxb6 {[%clk 0:02:10]}  Rf8 {[%clk 0:01:35]} 27. Rbc6 {[%clk 0:02:07]}  f4 {[%clk 0:01:35]} 28. exf4 {[%clk 0:02:04]}  Rxf4 {[%clk 0:01:34]} 29. Qe3 {[%clk 0:02:04]}  Rf7 {[%clk 0:01:28]} 30. f3 {[%clk 0:01:57]}  exf3 {[%clk 0:01:19]} 31. Qxe7 {[%clk 0:01:57]}  Rxe7 {[%clk 0:01:20]} 32. gxf3 {[%clk 0:01:57]}  Kh6 {[%clk 0:01:19]} 33. Kf2 {[%clk 0:01:51]}  Kg5 {[%clk 0:01:19]} 34. Rg1+ {[%clk 0:01:48]}  Kf6 {[%clk 0:01:19]} 35. h4 {[%clk 0:01:46]}  Bf5 {[%clk 0:01:15]} 36. Re1 {[%clk 0:01:41]}  Rxe1 {[%clk 0:01:07]} 37. Kxe1 {[%clk 0:01:41]}  g5 {[%clk 0:01:08]} 38. hxg5+ {[%clk 0:01:40]}  Kxg5 {[%clk 0:01:08]} 39. Kf2 {[%clk 0:01:40]}  Kf4 {[%clk 0:01:08]} 40. Rc1 {[%clk 0:01:36]}  h4 {[%clk 0:01:05]} 41. Bc6 {[%clk 0:01:35]}  Ra6 {[%clk 0:00:59]} 42. Bb5 {[%clk 0:01:33]}  Ra7 {[%clk 0:00:57]} 43. Rh1 {[%clk 0:01:31]}  h3 {[%clk 0:00:56]} 44. Rg1 {[%clk 0:01:31]}  Ra8 {[%clk 0:00:53]} 45. Bc6 {[%clk 0:01:20]}  Rb8 {[%clk 0:00:51]} 46. Bb5 {[%clk 0:01:20]}  Ra8 {[%clk 0:00:35]} 47. Rg7 {[%clk 0:01:18]}  Rh8 {[%clk 0:00:34]} 48. Rg1 {[%clk 0:01:06]}  Ra8 {[%clk 0:00:15]} 1/2-1/2


[Site "https://www.chess.com"]

[Event "Titled Tuesday Blitz May 10 Late 2022"]
[White "Sernecki, Franciszek"]
[Black "Gaisinsky, Adam"]
[WhiteFideId "1169297"]
[BlackFideId "2620561"]
[WhiteElo "2189"]
[BlackElo "1965"]
[Result "1-0"]
[Round "08"]
[TimeControl "180+1"]
[Date "2022.05.11"]
[WhiteClock "0:00:04"]
[BlackClock "0:00:05"]

1. d4 {[%clk 0:03:00]}  Nf6 {[%clk 0:02:57]} 2. c4 {[%clk 0:02:59]}  e6 {[%clk 0:02:57]} 3. Nf3 {[%clk 0:02:57]}  d5 {[%clk 0:02:54]} 4. Nc3 {[%clk 0:02:56]}  c6 {[%clk 0:02:51]} 5. Bg5 {[%clk 0:02:54]}  dxc4 {[%clk 0:02:51]} 6. e4 {[%clk 0:02:53]}  b5 {[%clk 0:02:51]} 7. e5 {[%clk 0:02:52]}  h6 {[%clk 0:02:52]} 8. Bh4 {[%clk 0:02:52]}  g5 {[%clk 0:02:52]} 9. Nxg5 {[%clk 0:02:53]}  hxg5 {[%clk 0:02:53]} 10. Bxg5 {[%clk 0:02:53]}  Be7 {[%clk 0:02:53]} 11. exf6 {[%clk 0:02:52]}  Bxf6 {[%clk 0:02:53]} 12. Bxf6 {[%clk 0:02:52]}  Qxf6 {[%clk 0:02:54]} 13. g3 {[%clk 0:02:53]}  Bb7 {[%clk 0:02:50]} 14. Bg2 {[%clk 0:02:53]}  a6 {[%clk 0:02:50]} 15. a4 {[%clk 0:02:43]}  b4 {[%clk 0:02:41]} 16. Ne4 {[%clk 0:02:42]}  Qe7 {[%clk 0:02:38]} 17. Nc5 {[%clk 0:02:34]}  a5 {[%clk 0:02:35]} 18. Rc1 {[%clk 0:02:28]}  Na6 {[%clk 0:02:34]} 19. Nxb7 {[%clk 0:02:14]}  Qxb7 {[%clk 0:02:31]} 20. Rxc4 {[%clk 0:02:14]}  Rc8 {[%clk 0:02:25]} 21. Qc1 {[%clk 0:02:04]}  Nb8 {[%clk 0:02:20]} 22. O-O {[%clk 0:01:54]}  Qd7 {[%clk 0:01:58]} 23. Qg5 {[%clk 0:01:41]}  Qd8 {[%clk 0:01:53]} 24. Qe5 {[%clk 0:01:36]}  Rg8 {[%clk 0:01:49]} 25. Rfc1 {[%clk 0:01:30]}  Rg5 {[%clk 0:01:44]} 26. Qh8+ {[%clk 0:01:21]}  Kd7 {[%clk 0:01:44]} 27. Qxd8+ {[%clk 0:01:03]}  Kxd8 {[%clk 0:01:39]} 28. Bxc6 {[%clk 0:01:02]}  Nxc6 {[%clk 0:01:26]} 29. Rxc6 {[%clk 0:01:03]}  Rxc6 {[%clk 0:01:21]} 30. Rxc6 {[%clk 0:01:04]}  Rd5 {[%clk 0:01:20]} 31. Rc4 {[%clk 0:00:50]}  e5 {[%clk 0:01:20]} 32. Rc5 {[%clk 0:00:41]}  Rxd4 {[%clk 0:00:56]} 33. Rxe5 {[%clk 0:00:41]}  b3 {[%clk 0:00:37]} 34. Rxa5 {[%clk 0:00:38]}  Rd2 {[%clk 0:00:35]} 35. Rb5 {[%clk 0:00:38]}  Rxb2 {[%clk 0:00:35]} 36. h4 {[%clk 0:00:38]}  Ke7 {[%clk 0:00:29]} 37. Kg2 {[%clk 0:00:37]}  Kf8 {[%clk 0:00:26]} 38. a5 {[%clk 0:00:34]}  Kg7 {[%clk 0:00:23]} 39. Kf3 {[%clk 0:00:34]}  Rb1 {[%clk 0:00:20]} 40. a6 {[%clk 0:00:33]}  b2 {[%clk 0:00:20]} 41. a7 {[%clk 0:00:25]}  Ra1 {[%clk 0:00:15]} 42. Rxb2 {[%clk 0:00:25]}  Rxa7 {[%clk 0:00:15]} 43. Rb3 {[%clk 0:00:26]}  Ra6 {[%clk 0:00:14]} 44. Kg4 {[%clk 0:00:26]}  Ra4+ {[%clk 0:00:14]} 45. Kh3 {[%clk 0:00:26]}  Ra2 {[%clk 0:00:14]} 46. f3 {[%clk 0:00:26]}  Ra4 {[%clk 0:00:12]} 47. g4 {[%clk 0:00:22]}  Ra1 {[%clk 0:00:13]} 48. Kg3 {[%clk 0:00:22]}  Rh1 {[%clk 0:00:12]} 49. h5 {[%clk 0:00:21]}  Ra1 {[%clk 0:00:13]} 50. Rb4 {[%clk 0:00:20]}  Rh1 {[%clk 0:00:12]} 51. Kf4 {[%clk 0:00:20]}  Rf1 {[%clk 0:00:12]} 52. Rb3 {[%clk 0:00:18]}  Rc1 {[%clk 0:00:12]} 53. Kg3 {[%clk 0:00:16]}  Rg1+ {[%clk 0:00:12]} 54. Kf2 {[%clk 0:00:16]}  Rc1 {[%clk 0:00:12]} 55. f4 {[%clk 0:00:14]}  Rh1 {[%clk 0:00:07]} 56. Kg3 {[%clk 0:00:12]}  Rg1+ {[%clk 0:00:07]} 57. Kh4 {[%clk 0:00:12]}  Kh6 {[%clk 0:00:03]} 58. g5+ {[%clk 0:00:11]}  Kg7 {[%clk 0:00:03]} 59. h6+ {[%clk 0:00:10]}  Kh7 {[%clk 0:00:04]} 60. Rg3 {[%clk 0:00:10]}  Rf1 {[%clk 0:00:03]} 61. Kg4 {[%clk 0:00:10]}  Kg6 {[%clk 0:00:04]} 62. Rg2 {[%clk 0:00:07]}  Rh1 {[%clk 0:00:03]} 63. f5+ {[%clk 0:00:06]}  Kh7 {[%clk 0:00:03]} 64. Rg3 {[%clk 0:00:05]}  Ra1 {[%clk 0:00:03]} 65. Kh5 {[%clk 0:00:05]}  Ra5 {[%clk 0:00:03]} 66. Rf3 {[%clk 0:00:04]}  Rb5 {[%clk 0:00:03]} 67. Rf4 {[%clk 0:00:04]}  Rc5 {[%clk 0:00:04]} 68. Kg4 {[%clk 0:00:04]}  Rc1 {[%clk 0:00:03]} 69. Ra4 {[%clk 0:00:04]}  Rg1+ {[%clk 0:00:04]} 70. Kf4 {[%clk 0:00:04]}  Rf1+ {[%clk 0:00:04]} 71. Ke5 {[%clk 0:00:05]}  Re1+ {[%clk 0:00:05]} 72. Kf6 {[%clk 0:00:05]}  Rf1 {[%clk 0:00:05]} 73. Ra5 {[%clk 0:00:04]}  Rg1 {[%clk 0:00:04]} 74. Ra7 {[%clk 0:00:03]}  Kg8 {[%clk 0:00:03]} 75. Rxf7 {[%clk 0:00:02]}  Ra1 {[%clk 0:00:04]} 76. Rg7+ {[%clk 0:00:02]}  Kh8 {[%clk 0:00:04]} 77. Re7 {[%clk 0:00:02]}  Ra6+ {[%clk 0:00:04]} 78. Re6 {[%clk 0:00:03]}  Ra7 {[%clk 0:00:05]} 79. g6 {[%clk 0:00:04]}  Kg8 {[%clk 0:00:05]} 80. Re8# {[%clk 0:00:04]} 1-0


[Site "https://www.chess.com"]